bitfinex-derivatives/quotes_SOLF0:USTF0_20250609
["timestamp","ask_amount","ask_price","bid_price","bid_amount"]
[1749481141483,6.4884,154.05,154.02,6.53448594]
[1749481141684,5.25929817,154.04,154.02,6.53448594]
[1749481141882,6.4884,154.05,154.02,6.53448594]
[1749481142086,5.25856362,154.04,154.02,6.53448594]
[1749481142286,6.4884,154.05,154.02,6.53448594]
[1749481142495,5.25958577,154.04,154.02,6.53448594]
[1749481142692,6.4884,154.05,154.02,6.53448594]
[1749481142888,5.25903673,154.04,154.02,6.53448594]
[1749481143094,5.25957927,154.04,154.02,6.53448594]
[1749481144995,5.25957927,154.04,154.02,0.04518594]
[1749481145290,5.91030906,154.06,154.02,0.04518594]
[1749481145291,5.25957927,154.03,154.02,0.04518594]
[1749481145499,5.25957927,154.04,154.02,0.04518594]
[1749481145692,4.3286,154.05,154.02,0.04518594]
[1749481145889,5.2556527,154.04,154.02,0.04518594]
[1749481146088,5.2556527,154.05,154.02,0.04518594]
[1749481146294,5.2556527,154.04,154.02,0.04518594]
[1749481146494,0.04128893,154.06,154.02,0.04518594]
[1749481146495,5.2556527,154.05,154.02,0.04518594]
[1749481147093,5.2556527,154.05,154.03,6.4888]
[1749481147394,5.2556527,154.05,154.02,0.04518594]
[1749481147590,5.25640759,154.04,154.02,0.04518594]
[1749481147794,6.4891,154.04,154.02,0.04518594]
[1749481148390,11.74674503,154.03,154.02,0.04518594]
[1749481149992,5.25764503,154.04,154.02,0.04518594]
[1749481150393,5.25764503,154.04,154.02,6.53448594]
[1749481151096,11.74644503,154.04,154.02,6.53448594]
[1749481151296,5.25764503,154.04,154.03,6.4891]
[1749481152094,8.6279,154.05,154.03,6.4891]
[1749481152597,5.25680479,154.04,154.03,6.4891]
[1749481152899,2.1393,154.05,154.03,6.4891]
[1749481153097,6.52928893,154.06,154.04,6.4887]
[1749481153297,5.25735422,154.05,154.04,6.4887]
[1749481156603,0.04128893,154.06,154.02,5.91420607]
[1749481156902,0.04128893,154.06,154.02,0.04518594]
[1749481157803,0.04128893,154.06,154.04,6.4885]
[1749481158903,0.04128893,154.06,154.05,6.4883]
[1749481159208,5.30496012,154.06,154.05,6.4883]
[1749481161205,11.79286012,154.06,154.03,6.489]
[1749481161397,5.26367119,154.05,154.03,6.489]
[1749481161597,6.52918893,154.06,154.03,6.489]
[1749481161797,5.26774292,154.05,154.03,6.489]
[1749481161997,6.52918893,154.06,154.03,6.489]
[1749481162303,5.26771045,154.05,154.03,6.489]
[1749481162505,6.52918893,154.06,154.03,6.489]
[1749481162705,5.26814348,154.05,154.03,6.489]
[1749481162902,6.52918893,154.06,154.04,6.4886]
[1749481163110,5.26821492,154.05,154.04,6.4886]
[1749481163807,0.04128893,154.06,154.05,6.4883]
[1749481164010,5.31620291,154.06,154.05,6.4883]
[1749481166312,0.04128893,154.06,154.05,6.4883]
[1749481174113,5.27922743,154.11,154.1,6.4862]
[1749481177123,0.04182793,154.12,154.11,6.4858]
[1749481177516,5.32105536,154.12,154.11,6.4858]
[1749481177717,0.04182793,154.12,154.11,6.4858]
[1749481177924,0.04182793,154.12,154.1,6.486]
[1749481178119,5.27658976,154.11,154.09,32.78558932]
[1749481178422,6.52732793,154.12,154.09,39.27188932]
[1749481178621,5.27641038,154.11,154.09,39.27188932]
[1749481178817,6.52732793,154.12,154.09,39.27188932]
[1749481179021,5.28041844,154.11,154.09,39.27188932]
[1749481179222,5.28041844,154.1,154.09,39.27188932]
[1749481179520,5.28041844,154.11,154.09,39.27188932]
[1749481179725,5.27982749,154.11,154.09,39.27188932]
[1749481179926,6.52732793,154.12,154.09,39.27188932]
[1749481180224,5.27980951,154.11,154.09,39.27188932]
[1749481181721,11.76560951,154.11,154.09,39.27188932]
[1749481181930,5.27980951,154.11,154.09,39.27188932]
[1749481182626,5.27980951,154.1,154.09,0.04558932]
[1749481182827,6.4862,154.1,154.09,0.04558932]
[1749481183029,5.27980951,154.1,154.09,0.04558932]
[1749481183329,11.76590951,154.11,154.09,0.04558932]
[1749481183525,6.4861,154.11,154.09,0.04558932]
[1749481183734,11.76129721,154.11,154.09,0.04558932]
[1749481184229,5.27519721,154.1,154.09,0.04558932]
[1749481184425,11.76129721,154.11,154.09,0.04558932]
[1749481185732,11.76129721,154.11,154.09,6.53208932]
[1749481185927,5.27519721,154.11,154.09,0.04558932]
[1749481186829,5.27519721,154.11,154.09,6.53198932]
[1749481187032,11.76099721,154.11,154.09,6.53198932]
[1749481187237,5.27519721,154.11,154.09,6.53198932]
[1749481187732,5.27519721,154.11,154.1,6.4862]
[1749481187933,0.04182793,154.12,154.1,6.4862]
[1749481188135,5.31702514,154.12,154.1,6.4862]
[1749481188330,0.04182793,154.12,154.1,6.4862]
[1749481188531,5.27519721,154.11,154.1,6.4862]
[1749481193735,5.28067569,154.11,154.1,6.4862]
[1749481199838,0.04182793,154.12,154.11,6.4858]
[1749481200032,5.3260316,154.12,154.11,6.4858]
[1749481200638,0.04182793,154.12,154.11,6.4858]
[1749481200839,0.04182793,154.12,154.1,39.186]
[1749481201440,5.2856306,154.11,154.1,39.186]
[1749481201838,0.04182793,154.12,154.11,6.4858]
[1749481205145,0.04182793,154.12,154.1,32.7]
[1749481205146,0.04182793,154.12,154.1,39.186]
[1749481205744,0.04182793,154.12,154.1,32.7]
[1749481205939,0.04182793,154.12,154.09,6.53208932]
[1749481205940,5.28933625,154.11,154.09,6.53208932]
[1749481206143,5.28933625,154.1,154.09,0.04558932]
[1749481207550,5.28933625,154.1,154.04,32.7]
[1749481207750,5.28933625,154.09,154.04,32.7]
[1749481207947,5.28933625,154.08,154.04,32.7]
[1749481208139,6.4868,154.09,154.06,6.4878]
[1749481208342,5.28863543,154.08,154.04,32.7]
[1749481208549,0.04636089,154.08,154.04,32.7468793]
[1749481208847,0.04636089,154.08,154.07,6.4874]
[1749481209050,5.33432599,154.08,154.07,6.4874]
[1749481209843,5.33432599,154.08,154.04,32.7468793]
[1749481210041,11.15698523,154.07,154.04,32.7468793]
[1749481210249,5.2879651,154.06,154.04,0.0468793]
[1749481210445,5.2879651,154.05,154.04,0.0468793]
[1749481210847,22.37121762,154.08,154.05,6.4881]
[1749481210848,5.2879651,154.07,154.05,6.4881]
[1749481211047,5.2879651,154.06,154.05,6.4881]
[1749481211548,0.04636089,154.08,154.05,38.56902013]
[1749481212648,0.04636089,154.08,154.07,6.4874]
[1749481213648,5.28728632,154.13,154.07,5.86902013]
[1749481213845,5.28728632,154.12,154.07,5.86902013]
[1749481214145,12.53555673,154.15,154.07,5.86902013]
[1749481214353,5.28402919,154.14,154.09,5.86902013]
[1749481214550,5.32696426,154.13,154.1,32.74987448]
[1749481214845,0.04293507,154.13,154.12,6.4853]
[1749481215549,5.32172911,154.13,154.11,6.4856]
[1749481215749,0.04293507,154.13,154.11,6.4856]
[1749481215951,5.27822067,154.12,154.11,6.4856]
[1749481216352,5.27807733,154.12,154.11,6.4856]
[1749481216850,6.4858,154.11,154.1,0.04987448]
[1749481217050,5.27807733,154.11,154.1,0.04987448]
[1749481217453,5.27807733,154.11,154.1,6.53607448]
[1749481218347,5.27807733,154.12,154.11,6.4857]
[1749481219451,0.04293507,154.13,154.12,6.4853]
[1749481219757,5.32889536,154.13,154.12,6.4853]
[1749481221459,0.04293507,154.13,154.12,6.4853]
[1749481221847,5.32889536,154.13,154.12,6.4853]
[1749481222053,0.04293507,154.13,154.12,6.4853]
[1749481228865,3.507e-05,154.13,154.12,6.4853]
[1749481229071,3.507e-05,154.13,154.12,39.1453]
[1749481229466,3.507e-05,154.13,154.12,32.66]
[1749481230569,5.29600258,154.13,154.12,32.66]
[1749481230773,3.507e-05,154.13,154.12,32.66]
[1749481231070,5.29600258,154.13,154.12,32.66]
[1749481231475,11.78090258,154.13,154.12,32.66]
[1749481231669,6.48493507,154.13,154.12,32.66]
[1749481231869,11.78090258,154.13,154.12,32.66]
[1749481232173,6.48493507,154.13,154.11,6.4854]
[1749481232374,5.29596751,154.12,154.1,0.04987448]
[1749481232569,5.8690552,154.13,154.1,0.04987448]
[1749481232570,5.29596751,154.11,154.1,0.04987448]
[1749481232775,6.4868,154.09,154.06,39.1476]
[1749481232975,6.4868,154.09,154.01,6.5752]
[1749481232976,5.29675681,154.08,154.05,32.66]
[1749481233172,5.29675681,154.08,153.97,12.9826]
[1749481233173,5.29675681,154.08,154.04,32.66]
[1749481233476,6.4877,154.07,154.04,6.4884]
[1749481233780,6.53592836,154.07,154.04,6.53325422]
[1749481234078,0.04822836,154.07,154.04,0.04485422]
[1749481234473,0.04822836,154.07,154.06,6.4879]
[1749481240584,2.836e-05,154.07,154.06,6.4879]
[1749481244489,2.836e-05,154.07,154.05,6.4883]
[1749481245386,5.28600816,154.07,154.05,6.4883]
[1749481245890,2.836e-05,154.07,154.05,6.4883]
[1749481246090,2.836e-05,154.07,154.06,6.4878]
[1749481247592,2.836e-05,154.07,154.04,0.04485422]
[1749481247788,5.86904849,154.07,154.04,0.04485422]
[1749481247994,13.38914642,154.07,154.04,0.04485422]
[1749481248191,8.10414849,154.07,154.04,0.04485422]
[1749481248697,2.23512836,154.07,154.05,6.4879]
[1749481249498,13.37463386,154.07,153.96,2.2636]
[1749481249700,5.86902013,154.02,153.94,32.68]
[1749481249894,160.7751,154.07,153.94,32.68]
[1749481249895,12.35952013,154.0,153.96,6.4918]
[1749481250092,5.86902013,154.0,153.94,32.68]
[1749481250491,5.86902013,153.98,153.95,0.04844855]
[1749481251293,5.86902013,153.98,153.95,6.54054855]
[1749481252495,0.04858513,153.99,153.95,0.04844855]
[1749481252696,0.04858513,153.99,153.97,5.86902013]
[1749481252904,0.04858513,153.99,153.98,32.66]
[1749481253402,8.513e-05,153.99,153.98,39.1512]
[1749481254000,6.4773,154.06,154.04,6.4883]
[1749481254202,6.4773,154.06,153.98,32.66]
[1749481254203,6.4773,154.06,154.0,5.86902013]
[1749481254503,2.107,154.06,154.0,5.86902013]
[1749481254707,2.107,154.06,154.05,6.4883]
[1749481255703,0.04425602,154.07,154.05,6.4883]
[1749481256606,0.04425602,154.07,154.06,6.4878]
[1749481257406,0.04425602,154.07,154.05,6.4881]
[1749481258612,0.04425602,154.07,154.06,6.4878]
[1749481259011,0.04425602,154.07,154.05,6.4881]
[1749481259703,0.04425602,154.07,154.04,0.04218418]
[1749481259906,9.57546439,154.06,154.02,32.66]
[1749481260107,9.57546439,154.06,153.99,32.66]
[1749481260406,23.57546439,154.06,154.02,6.4893]
[1749481260912,23.62507002,154.06,154.02,6.53674803]
[1749481261104,23.62507002,154.06,154.03,6.4891]
[1749481261307,14.04960563,154.06,154.03,6.4891]
[1749481261702,14.04960563,154.06,154.02,6.53684803]
[1749481262311,6.4885,154.05,154.02,6.53684803]
[1749481262708,14.04960563,154.06,154.02,0.04744803]
[1749481263710,6.4889,154.04,154.02,0.04744803]
[1749481264913,6.4883,154.05,154.02,6.53684803]
[1749481265114,14.04960563,154.06,154.02,0.04744803]
[1749481265506,0.04960563,154.06,154.05,6.4883]
[1749481266411,0.04960563,154.06,154.04,6.4884]
[1749481266611,0.04960563,154.06,154.03,32.66]
[1749481267013,6.4885,154.05,154.03,32.66]
[1749481267214,0.04960563,154.06,154.03,32.66]
[1749481267715,0.04960563,154.06,154.04,6.4884]
[1749481268110,0.04960563,154.06,154.03,32.66]
[1749481269215,6.53770563,154.06,154.03,39.1489]
[1749481269820,0.04960563,154.06,154.03,32.66]
[1749481270315,0.04960563,154.06,154.04,6.4884]
[1749481271623,0.04960563,154.06,154.03,32.66]
[1749481272018,6.4884,154.05,154.02,0.04744803]
[1749481272223,6.4884,154.05,154.02,6.53674803]
[1749481272422,6.4889,154.04,154.02,6.53674803]
[1749481272629,6.4889,154.04,154.02,0.04744803]
[1749481272825,9.57546439,154.04,153.96,32.66]
[1749481273018,9.57546439,154.02,153.96,32.66]
[1749481273320,9.57546439,154.02,153.96,39.1518]
[1749481273818,5.24341995,154.01,153.97,0.04548835]
[1749481274019,5.28903836,154.01,153.97,0.04548835]
[1749481274622,6.4912,153.98,153.97,0.04548835]
[1749481275626,14.04561841,154.01,153.97,0.04548835]
[1749481276023,14.04561841,154.01,153.99,6.4906]
[1749481276328,14.04561841,154.01,153.97,0.04548835]
[1749481276719,14.04561841,154.01,154.0,6.4904]
[1749481277629,14.04561841,154.01,153.99,6.4906]
[1749481277829,0.04561841,154.01,153.99,6.4906]
[1749481278931,0.04561841,154.01,153.97,0.04548835]
[1749481279321,0.04561841,154.01,154.0,6.4904]
[1749481279522,0.04561841,154.01,153.97,0.04548835]
[1749481279929,0.04561841,154.01,154.0,6.4904]
[1749481281232,0.04561841,154.01,154.0,39.1704]
[1749481282820,14.0,154.06,154.05,6.4883]
[1749481283027,10.9109,154.08,154.05,6.4883]
[1749481283232,5.23990093,154.07,154.05,6.4883]
[1749481283428,11.72740093,154.07,154.04,6.4885]
[1749481283628,5.23990093,154.07,154.0,42.25546439]
[1749481283927,0.04830954,154.05,154.02,0.0453701]
[1749481284829,0.04830954,154.05,154.04,6.4884]
[1749481285332,0.04830954,154.05,154.04,39.1484]
[1749481286533,0.04830954,154.05,154.04,32.66]
[1749481286737,0.04830954,154.05,154.02,0.0453701]
[1749481287531,0.04830954,154.05,154.03,6.4887]
[1749481287726,0.04830954,154.05,154.02,0.0453701]
[1749481288229,0.04830954,154.05,154.04,6.4887]
[1749481291233,0.04830954,154.05,154.03,6.4889]
[1749481291535,0.04830954,154.05,154.02,0.0453701]
[1749481291737,0.04830954,154.05,154.03,6.4887]
[1749481291935,5.3063823,154.05,154.02,0.0453701]
[1749481292128,0.04830954,154.05,154.02,0.0453701]
[1749481292627,5.3063823,154.05,154.02,0.0453701]
[1749481292831,0.04830954,154.05,154.02,0.0453701]
[1749481293135,6.53680954,154.05,154.02,6.5346701]
[1749481293340,0.04830954,154.05,154.02,6.5346701]
[1749481293542,5.25633589,154.04,154.02,6.5346701]
[1749481293736,5.25633589,154.04,154.03,6.4891]
[1749481293935,5.25633589,154.04,154.02,0.0453701]
[1749481294442,5.25633589,154.04,154.02,6.5346701]
[1749481294852,5.25633589,154.04,154.02,0.0453701]
[1749481295035,5.25633589,154.04,154.03,6.4891]
[1749481295336,5.30464543,154.05,154.03,6.4891]
[1749481295542,5.30464543,154.05,154.02,0.0453701]
[1749481295543,5.30429932,154.05,154.04,6.4887]
[1749481295742,0.04830954,154.05,154.04,6.4887]
[1749481295932,5.30429932,154.05,154.04,6.4887]
[1749481296134,0.04830954,154.05,154.04,6.4887]
[1749481296332,5.30429932,154.05,154.04,6.4887]
[1749481296536,0.04830954,154.05,154.04,6.4887]
[1749481297044,0.04830954,154.05,154.02,0.0453701]
[1749481297343,5.87427046,154.03,153.91,44.49471842]
[1749481297541,5.87427046,153.99,153.91,38.53427046]
[1749481297739,6.4919,153.97,153.93,6.4931]
[1749481298041,6.4919,153.97,153.91,38.53427046]
[1749481298241,0.04866082,153.96,153.92,0.04684132]
[1749481298742,0.04866082,153.96,153.94,6.4926]
[1749481299142,0.04866082,153.96,153.92,0.04684132]
[1749481300848,0.04866082,153.96,153.95,6.4925]
[1749481302348,0.04866082,153.96,153.92,0.04684132]
[1749481302747,0.04866082,153.96,153.92,6.54044132]
[1749481302941,0.04866082,153.96,153.92,0.04684132]
[1749481303341,6.4925,153.95,153.92,0.04684132]
[1749481304142,6.4925,153.95,153.92,6.54034132]
[1749481305349,6.4925,153.95,153.93,6.4933]
[1749481305942,6.54086082,153.96,153.93,6.4933]
[1749481306355,0.04866082,153.96,153.92,0.04684132]
[1749481306847,0.04866082,153.96,153.93,6.493]
[1749481307049,6.54096082,153.96,153.93,6.493]
[1749481307448,6.54096082,153.96,153.94,6.4929]
[1749481307645,0.04866082,153.96,153.94,6.4929]
[1749481307947,0.04866082,153.96,153.95,6.4925]
[1749481309340,9.63377328,153.96,153.92,0.04684132]
[1749481309849,6.4925,153.95,153.92,0.04684132]
[1749481310237,9.63377328,153.96,153.92,0.04684132]
[1749481310238,6.4929,153.94,153.92,6.54034132]
[1749481311047,9.63377328,153.96,153.92,0.04684132]
[1749481311447,6.4932,153.94,153.92,0.04684132]
[1749481311850,14.17627328,153.96,153.92,0.04684132]
[1749481312150,5.20327166,153.95,153.92,0.04684132]
[1749481312542,6.4929,153.94,153.92,0.04684132]
[1749481312947,6.4929,153.94,153.92,6.54054132]
[1749481313243,14.17627328,153.96,153.92,0.04684132]
[1749481313546,2.32216082,153.96,153.94,6.4926]
[1749481313853,0.04866082,153.96,153.92,0.04684132]
[1749481314041,0.04866082,153.96,153.95,6.4925]
[1749481320157,0.04866082,153.96,153.94,6.4926]
[1749481320556,0.04866082,153.96,153.92,32.70684132]
[1749481320749,0.04866082,153.96,153.95,6.4925]
[1749481321555,6.082e-05,153.96,153.95,6.4925]
[1749481327250,6.082e-05,153.96,153.92,32.70684132]
[1749481328063,6.082e-05,153.96,153.95,6.4925]
[1749481344474,4.4071,154.04,153.94,5.8804197]
[1749481344671,5.24228002,154.03,153.98,5.8804197]
[1749481344975,5.24228002,154.02,153.98,38.6804197]
[1749481345169,5.24228002,154.01,153.98,38.6804197]
[1749481345372,5.24228002,154.03,153.98,38.6804197]
[1749481345675,5.29187767,154.02,154.01,6.4899]
[1749481345871,0.04959765,154.02,154.01,6.4899]
[1749481346072,5.29187767,154.02,154.01,6.4899]
[1749481346272,0.04959765,154.02,154.01,12.3703197]
[1749481346671,8.27415566,154.11,154.01,5.8804197]
[1749481346872,5.23706889,154.1,154.05,5.8804197]
[1749481347073,5.23706889,154.09,154.06,32.8]
[1749481347274,5.23672134,154.08,154.06,32.8]
[1749481347478,5.23672134,154.1,154.06,32.8]
[1749481347775,0.04901383,154.1,154.08,6.4867]
[1749481347975,0.04901383,154.1,154.07,5.8804197]
[1749481348672,0.04901383,154.1,154.09,6.4866]
[1749481349277,0.04901383,154.1,154.08,6.4869]
[1749481349476,0.04901383,154.1,154.06,32.84535433]
[1749481350580,5.92943353,154.1,154.06,32.84535433]
[1749481350780,5.8804197,154.08,154.03,32.8]
[1749481350980,2.0957,154.07,154.03,32.8]
[1749481351874,2.0957,154.07,154.03,32.84982005]
[1749481352182,2.0957,154.07,154.05,6.4882]
[1749481352682,6.4867,154.09,154.06,6.4876]
[1749481352881,11.7258771,154.09,154.06,6.4876]
[1749481354985,6.4873,154.08,154.05,6.4882]
[1749481355287,5.2391771,154.09,154.03,32.84982005]
[1749481355578,6.4877,154.07,154.04,6.4886]
[1749481355779,6.4877,154.07,154.03,32.84982005]
[1749481356184,6.4877,154.07,154.04,6.4886]
[1749481356583,6.4879,154.06,154.04,6.4886]
[1749481356886,10.4087197,154.08,154.03,32.84982005]
[1749481357088,5.28161318,154.07,154.03,32.84982005]
[1749481357479,5.8804197,154.06,154.03,32.84982005]
[1749481357788,5.8804197,154.06,154.03,0.04982005]
[1749481357989,2.2992,154.05,154.03,0.04982005]
[1749481358387,7.53930897,154.05,154.03,0.04982005]
[1749481358687,5.8804197,154.04,154.0,32.78]
[1749481358884,11.12052867,154.04,154.0,32.78]
[1749481359487,6.4892,154.03,154.0,32.78]
[1749481359676,6.53190016,154.03,154.0,39.31951748]
[1749481360188,6.53190016,154.03,154.01,6.4899]
[1749481360189,0.04270016,154.03,154.01,6.4899]
[1749481360689,0.04270016,154.03,154.0,32.82931748]
[1749481360990,0.04270016,154.03,154.0,39.31951748]
[1749481361592,6.4898,154.02,154.0,32.82931748]
[1749481361983,6.4898,154.02,154.0,0.04931748]
[1749481362180,6.4899,154.01,154.0,0.04931748]
[1749481366087,6.4912,153.98,153.97,32.78]
[1749481366284,5.8804197,153.99,153.95,6.4924]
[1749481366487,6.4914,153.98,153.95,6.4924]
[1749481366993,11.76534404,153.98,153.95,6.53916768]
[1749481367294,6.54125144,153.98,153.95,6.53916768]
[1749481367487,6.54125144,153.98,153.95,0.04676768]
[1749481367685,0.04985144,153.98,153.95,0.04676768]
[1749481368185,0.04985144,153.98,153.96,6.4917]
[1749481369390,0.04985144,153.98,153.95,0.04676768]
[1749481369793,5.8804197,153.97,153.95,0.04676768]
[1749481370192,2.22855144,153.98,153.95,0.04676768]
[1749481370594,0.04985144,153.98,153.97,6.4916]
[1749481374298,0.04985144,153.98,153.97,12.3720197]
[1749481375103,5.144e-05,153.98,153.97,12.3720197]
[1749481375496,14.0,154.05,154.03,6.489]
[1749481375896,14.0,154.05,154.01,32.98]
[1749481376400,20.4885,154.05,154.02,6.4893]
[1749481376600,20.4885,154.05,154.02,6.53153906]
[1749481376601,20.53120196,154.05,154.02,6.53153906]
[1749481378713,14.04270196,154.05,154.02,0.04223906]
[1749481379011,0.04270196,154.05,154.02,0.04223906]
[1749481379916,0.04270196,154.05,154.03,6.4887]
[1749481380115,0.04270196,154.05,154.02,0.04223906]
[1749481380510,0.04270196,154.05,154.04,6.4887]
[1749481382016,1.96e-06,154.05,154.04,6.4887]
[1749481382216,5.23597392,154.12,154.09,6.4865]
[1749481382414,11.72157392,154.12,154.09,6.4865]
[1749481382609,5.23597392,154.12,154.09,6.4865]
[1749481383006,6.4857,154.11,154.09,6.4865]
[1749481383513,5.28110639,154.12,154.08,0.04533388]
[1749481383816,0.04513247,154.12,154.08,0.04533388]
[1749481384017,0.04513247,154.12,154.11,6.4857]
[1749481384418,0.04513247,154.12,154.11,39.4457]
[1749481385214,5.24921248,154.16,154.15,6.484]
[1749481386219,220.85550559,154.17,154.15,6.484]
[1749481386417,220.85550559,154.17,154.14,6.53265664]
[1749481386622,226.73592529,154.17,154.14,0.04835664]
[1749481386918,5.92239943,154.17,154.14,6.53255664]
[1749481387120,0.04197973,154.17,154.14,6.53255664]
[1749481387314,0.04197973,154.17,154.14,0.04835664]
[1749481389218,6.52537973,154.17,154.14,6.53255664]
[1749481389423,0.04197973,154.17,154.14,0.04835664]
[1749481390017,0.04197973,154.17,154.15,6.4838]
[1749481390924,6.52517973,154.17,154.14,6.53265664]
[1749481391519,6.52517973,154.17,154.15,6.484]
[1749481391713,0.04197973,154.17,154.15,6.484]
[1749481391921,0.04197973,154.17,154.14,0.04835664]
[1749481392119,6.4839,154.16,154.14,0.04835664]
[1749481392320,0.04197973,154.17,154.14,0.04835664]
[1749481392825,0.04197973,154.17,154.16,6.4836]
[1749481393227,0.04197973,154.17,154.14,0.04835664]
[1749481393430,0.04197973,154.17,154.15,6.4838]
[1749481393727,0.04197973,154.17,154.14,0.04835664]
[1749481394026,0.04197973,154.17,154.15,6.4838]
[1749481394626,0.04197973,154.17,154.16,6.4836]
[1749481400024,14.0,154.23,154.15,38.8204197]
[1749481400231,19.8804197,154.26,154.18,5.8804197]
[1749481400430,5.8804197,154.22,154.19,32.94]
[1749481400639,6.4822,154.2,154.16,32.94]
[1749481400829,5.8804197,154.2,154.12,379.4204197]
[1749481401130,5.8804197,154.2,154.14,0.04442968]
[1749481401131,0.04897566,154.18,154.14,0.04442968]
[1749481401734,6.53217566,154.18,154.14,6.52862968]
[1749481402126,0.04897566,154.18,154.14,6.52862968]
[1749481402323,0.04897566,154.18,154.14,0.04442968]
[1749481402828,6.53197566,154.18,154.15,6.484]
[1749481404134,6.4832,154.17,154.15,6.484]
[1749481405334,0.04897566,154.18,154.15,6.484]
[1749481405536,0.04897566,154.18,154.14,0.04442968]
[1749481405933,6.4833,154.17,154.14,0.04442968]
[1749481406235,0.04897566,154.18,154.14,0.04442968]
[1749481406630,6.53207566,154.18,154.15,6.4838]
[1749481407335,6.53207566,154.18,154.16,6.4835]
[1749481407536,6.4832,154.17,154.14,0.04442968]
[1749481407930,0.04897566,154.18,154.15,6.4838]
[1749481408837,0.04897566,154.18,154.16,6.4835]
[1749481409135,0.04897566,154.18,154.14,0.04442968]
[1749481409831,0.04897566,154.18,154.14,5.92484938]
[1749481410139,0.04897566,154.18,154.17,6.4832]
[1749481410334,7.566e-05,154.18,154.17,39.2232]
[1749481411935,20.4796,154.26,154.17,32.74]
[1749481412140,20.4796,154.26,154.23,6.4805]
[1749481412442,14.0,154.26,154.21,32.74]
[1749481412937,6.4801,154.25,154.22,6.4809]
[1749481413240,6.52297076,154.25,154.22,6.52713662]
[1749481413438,6.4803,154.24,154.22,0.04623662]
[1749481414040,6.52287076,154.25,154.22,0.04623662]
[1749481414538,0.04287076,154.25,154.24,6.4803]
[1749481417142,0.04287076,154.25,154.23,6.4805]
[1749481418242,0.04287076,154.25,154.22,0.04623662]
[1749481418941,5.92329046,154.25,154.22,0.04623662]
[1749481419143,5.8804197,154.23,154.18,32.74]
[1749481419343,11.14888868,154.23,154.18,32.74]
[1749481419645,11.14888868,154.23,154.19,6.4821]
[1749481420048,5.8804197,154.23,154.19,6.4821]
[1749481420243,11.19772468,154.23,154.19,0.04400327]
[1749481420757,6.4812,154.22,154.2,6.4819]
[1749481421955,6.525807,154.23,154.21,6.4815]
[1749481422546,4.11034246,154.22,154.21,6.4815]
[1749481422850,4.11034247,154.22,154.21,6.4815]
[1749481423141,4.11035498,154.22,154.2,6.4818]
[1749481423346,6.525807,154.23,154.2,6.4818]
[1749481423750,9.39442726,154.22,154.2,6.4818]
[1749481423951,11.76514134,154.22,154.2,6.4818]
[1749481424452,5.28394134,154.22,154.2,6.4818]
[1749481427145,5.28394134,154.21,154.2,6.4818]
[1749481427348,5.28394134,154.22,154.2,6.4818]
[1749481427758,11.76524134,154.22,154.19,6.52620327]
[1749481428158,5.28394134,154.21,154.19,6.52620327]
[1749481428359,11.76564134,154.21,154.19,6.52620327]
[1749481428552,6.4817,154.21,154.19,0.04400327]
[1749481428753,5.8804197,154.21,154.19,0.04400327]
[1749481428961,5.28309935,154.2,154.15,39.2238]
[1749481429160,11.16351905,154.19,154.15,32.74]
[1749481429351,5.28309935,154.18,154.15,32.74]
[1749481429950,6.4835,154.17,154.15,39.26559061]
[1749481430360,6.4835,154.17,154.15,32.78159061]
[1749481430556,5.32519983,154.18,154.15,32.78159061]
[1749481431760,5.32519983,154.18,154.15,0.04159061]
[1749481432359,6.4836,154.16,154.15,0.04159061]
[1749481432561,5.32519983,154.18,154.15,0.04159061]
[1749481432960,6.4834,154.17,154.15,6.52549061]
[1749481433260,5.32519983,154.18,154.15,6.52549061]
[1749481433463,0.04210048,154.18,154.15,6.52549061]
[1749481433654,5.32519983,154.18,154.15,6.52549061]
[1749481434363,5.26519983,154.18,154.15,6.52549061]
[1749481434764,11.74799983,154.18,154.15,6.52549061]
[1749481435167,11.74799983,154.18,154.16,6.4835]
[1749481437465,11.74799983,154.18,154.15,6.52539061]
[1749481437662,11.74799983,154.18,154.15,0.04159061]
[1749481438466,11.74799983,154.18,154.15,6.52539061]
[1749481438965,11.74799983,154.18,154.16,6.4834]
[1749481439166,5.26519983,154.18,154.16,6.4834]
[1749481440265,11.74799983,154.18,154.16,6.4834]
[1749481440470,5.26519983,154.18,154.17,6.4832]
[1749481440763,0.04805309,154.19,154.15,0.04159061]
[1749481440969,0.04805309,154.19,154.18,6.4828]
[1749481442661,22.25810084,154.25,154.18,5.8804197]
[1749481442863,220.88711319,154.27,154.2,5.8804197]
[1749481443066,220.88711319,154.27,154.21,32.74]